fUST/lending_fUST_20250615
["ID","MTS","AMOUNT","RATE_DAILY","PERIOD"]
[365890085,1749975033936,-423.40622762,0.00021917,4]
[365890086,1749975033945,-460.0,0.00021917,4]
[365890087,1749975033955,-373.05866487,0.00021917,4]
[365890088,1749975033964,-526.58,0.00021917,4]
[365890089,1749975033974,-402.63028104,0.00021917,4]
[365890090,1749975033984,-303.48287227,0.00021917,4]
[365890091,1749975033994,-460.0,0.00021917,4]
[365890092,1749975034003,-298.2784253,0.00021917,4]
[365890093,1749975034014,-437.7812393,0.00021917,4]
[365890094,1749975034024,-317.18444846,0.00021917,4]
[365890095,1749975034036,-460.0,0.00021917,4]
[365890096,1749975034047,-446.05953334,0.00021917,4]
[365890097,1749975034057,-460.0,0.00021917,4]
[365890098,1749975034066,-430.0,0.00021917,4]
[365890099,1749975034076,-460.0,0.00021917,4]
[365890100,1749975034085,-460.0,0.00021917,4]
[365890101,1749975034095,-430.0,0.00021917,4]
[365890102,1749975034104,-430.0,0.00021917,4]
[365890103,1749975034114,-460.0,0.00021917,4]
[365890104,1749975034123,-506.32837495,0.00021917,4]
[365890105,1749975034133,-430.0,0.00021917,4]
[365890106,1749975034143,-430.0,0.00021917,4]
[365890107,1749975034152,-460.0,0.00021917,4]
[365890108,1749975034161,-460.0,0.00021917,4]
[365890109,1749975034171,-460.0,0.00021917,4]
[365890110,1749975034181,-497.71961472,0.00021917,4]
[365890111,1749975034190,-417.29878195,0.00021917,4]
[365890112,1749975034200,-438.75664657,0.00021917,4]
[365890113,1749975034210,-440.0,0.00021917,4]
[365890114,1749975034219,-529.95622086,0.00021917,4]
[365890115,1749975034229,-460.0,0.00021917,2]
[365890116,1749975034239,-460.0,0.00021917,4]
[365890117,1749975034248,-500.0,0.00021917,4]
[365890118,1749975034258,-460.0,0.00021917,4]
[365890119,1749975034268,-460.0,0.00021917,4]
[365890120,1749975034278,-440.0,0.00021917,4]
[365890121,1749975034288,-440.0,0.00021917,4]
[365890122,1749975034298,-441.18271004,0.00021917,4]
[365890123,1749975034307,-460.0,0.00021917,4]
[365890124,1749975034317,-540.0,0.00021917,4]
[365890125,1749975034327,-460.0,0.00021917,4]
[365890126,1749975034338,-437.6898299,0.00021917,4]
[365890127,1749975034348,-460.0,0.00021917,4]
[365890128,1749975034358,-516.98629863,0.00021917,4]
[365890129,1749975034367,-430.0,0.00021917,4]
[365890130,1749975034377,-433.9045185,0.00021917,4]
[365890131,1749975034386,-566.72071813,0.00021917,4]
[365890132,1749975034396,-434.22449369,0.00021917,4]
[365890133,1749975034406,-448.99801403,0.00021917,4]
[365890134,1749975034415,-495.78953446,0.00021917,4]
[365890135,1749975034424,-430.0,0.00021917,4]
[365890136,1749975034433,-460.0,0.00021917,4]
[365890137,1749975034443,-436.35941484,0.00021917,4]
[365890138,1749975034454,-440.0,0.00021917,4]
[365890139,1749975034464,-431.55075061,0.00021917,4]
[365890140,1749975034474,-2426.14,0.00021917,4]
[365890141,1749975034484,-842.31,0.00021917,4]
[365890142,1749975034494,-444.65624438,0.00021917,4]
[365890143,1749975034504,-440.0,0.00021917,4]
[365890145,1749975034514,-460.0,0.00021917,4]
[365890147,1749975034523,-460.0,0.00021917,4]
[365890149,1749975034533,-434.49710221,0.00021917,4]
[365890151,1749975034542,-268.23077591,0.00021917,4]
[365890153,1749975034552,-432.13181176,0.00021917,4]
[365890155,1749975034561,-460.0,0.00021917,4]
[365890157,1749975034571,-499.39,0.00021917,4]
[365890159,1749975034580,-440.0,0.00021917,4]
[365890175,1749975034721,-460.0,0.00021917,4]
[365890177,1749975034732,-460.0,0.00021917,4]
[365890179,1749975034742,-460.0,0.00021917,4]
[365890182,1749975034751,-432.98990524,0.00021917,4]
[365890184,1749975034760,-440.0,0.00021917,4]
[365890186,1749975034771,-440.0,0.00021917,4]
[365890188,1749975034780,-405.30807104,0.00021917,4]
[365890189,1749975034789,-460.0,0.00021917,4]
[365890192,1749975034799,-439.0382,0.00021917,4]
[365890194,1749975034808,-3243.66,0.00021917,4]
[365890196,1749975034818,-460.0,0.00021917,4]
[365890198,1749975034827,-290.0,0.00021917,4]
[365890200,1749975034836,-431.74045999,0.00021917,4]
[365890202,1749975034845,-569.04,0.00021917,4]
[365890204,1749975034855,-430.0,0.00021917,4]
[365890206,1749975034865,-2736.88,0.00021917,4]
[365890208,1749975034874,-522.56,0.00021917,4]
[365890210,1749975034884,-442.93361102,0.00021917,4]
[365890212,1749975034893,-460.0,0.00021917,4]
[365890213,1749975034902,-263.27855889,0.00021917,4]
[365890216,1749975034913,-841.3,0.00021917,4]
[365890218,1749975034922,-430.0,0.00021917,4]
[365890220,1749975034931,-3703.19,0.00021917,4]
[365890221,1749975034940,-3048.92,0.00021917,4]
[365890224,1749975034949,-2924.58,0.00021917,4]
[365890226,1749975034958,-500.0,0.00021917,4]
[365890227,1749975034968,-500.0,0.00021917,4]
[365890230,1749975034977,-500.0,0.00021917,4]
[365890232,1749975034987,-500.0,0.00021917,4]
[365890234,1749975034996,-500.0,0.00021917,4]
[365890235,1749975035005,-168.48868773,0.00021917,4]
[365890238,1749975035015,-460.0,0.00021917,4]
[365890240,1749975035024,-564.7,0.00021917,4]
[365890242,1749975035033,-460.0,0.00021917,4]
[365890243,1749975035043,-275.36396146,0.00021917,4]
[365890245,1749975035052,-460.0,0.00021917,4]
[365890247,1749975035062,-460.0,0.00021917,4]
[365890249,1749975035071,-460.0,0.00021917,4]
[365890252,1749975035081,-432.07287624,0.00021917,4]
[365890253,1749975035090,-430.0,0.00021917,4]
[365890255,1749975035099,-453.44590857,0.00021917,4]
[365890257,1749975035108,-430.0,0.00021917,4]
[365890259,1749975035117,-460.0,0.00021917,4]
[365890261,1749975035127,-606.84,0.00021917,4]
[365890263,1749975035136,-460.0,0.00021917,4]
[365890265,1749975035145,-177.4559475,0.00021917,4]
[365890267,1749975035154,-460.0,0.00021917,4]
[365890269,1749975035164,-1203.76,0.00021917,4]
[365890271,1749975035173,-1551.83,0.00021917,4]
[365890273,1749975035182,-460.0,0.00021917,4]
[365890275,1749975035191,-1455.59,0.00021917,4]
[365890277,1749975035201,-430.0,0.00021917,4]
[365890279,1749975035210,-460.0,0.00021917,4]
[365890281,1749975035219,-460.0,0.00021917,4]
[365890283,1749975035228,-460.0,0.00021917,4]
[365890285,1749975035238,-460.0,0.00021917,4]
[365890287,1749975035247,-566.41,0.00021917,4]
[365890289,1749975035256,-460.0,0.00021917,4]
[365890291,1749975035266,-460.0,0.00021917,4]
[365890293,1749975035275,-460.28,0.00021917,4]
[365890295,1749975035285,-460.0,0.00021917,4]
[365890297,1749975035294,-460.0,0.00021917,4]
[365890299,1749975035303,-460.0,0.00021917,4]
[365890301,1749975035312,-460.0,0.00021917,4]
[365890303,1749975035322,-829.02,0.00021917,4]
[365890305,1749975035331,-400.0,0.00021917,4]
[365890307,1749975035340,-460.0,0.00021917,4]
[365890309,1749975035350,-491.26485986,0.00021917,4]
[365890311,1749975035359,-1462.87,0.00021917,4]
[365890313,1749975035369,-460.0,0.00021917,4]
[365890315,1749975035378,-460.0,0.00021917,4]
[365890317,1749975035387,-448.94301178,0.00021917,4]
[365890319,1749975035396,-213.55982167,0.00021917,4]
[365890321,1749975035406,-460.0,0.00021917,4]
[365890323,1749975035415,-1687.78,0.00021917,4]
[365890325,1749975035424,-472.55,0.00021917,4]
[365890327,1749975035434,-460.0,0.00021917,4]
[365890329,1749975035443,-428.15526215,0.00021917,4]
[365890331,1749975035452,-460.0,0.00021917,4]
[365890333,1749975035462,-460.0,0.00021917,4]
[365890335,1749975035471,-735.37,0.00021917,4]
[365890337,1749975035480,-151.0,0.00021917,4]
[365890338,1749975035490,-460.0,0.00021917,4]
[365890340,1749975035499,-151.0,0.00021917,4]
[365890342,1749975035508,-151.0,0.00021917,4]
[365890344,1749975035517,-258.42265894,0.00021917,2]
[365890346,1749975035526,-350.13444175,0.00021917,4]
[365890348,1749975035535,-351.08189282,0.00021917,4]
[365890350,1749975035544,-460.0,0.00021917,4]
[365890352,1749975035554,-460.0,0.00021917,4]
[365890354,1749975035563,-460.0,0.00021917,4]
[365890356,1749975035572,-460.0,0.00021917,4]
[365890358,1749975035582,-152.72405164,0.00021917,4]
[365890360,1749975035591,-255.6404125,0.00021917,4]
[365890362,1749975035600,-188.38831996,0.00021917,4]
[365890364,1749975035617,-266.08988687,0.00021917,4]
[365890366,1749975035627,-740.41997226,0.00021917,4]
[365890368,1749975035639,-376.45745894,0.00021917,4]
[365890635,1749975038630,-205.28753232,0.0002042,2]
[365890637,1749975038639,-808.75763546,0.00020628,2]
[365890639,1749975038652,-1414.00735335,0.00020628,2]
[365890641,1749975038662,-2222.76498881,0.00020628,2]
[365890644,1749975038672,-2222.76498881,0.00020628,2]
[365890646,1749975038681,-177.9,0.00021907,10]
[365890648,1749975038691,-23220.3134403,0.00021917,2]
[365890664,1749975038846,-168.0,0.00020469,2]
[365890666,1749975038856,-26779.6865597,0.00021917,2]
[365890668,1749975038866,-634.9325688,0.00021917,4]
[365890669,1749975038875,-460.0,0.00021917,4]
[365890671,1749975038885,-460.0,0.00021917,4]
[365890674,1749975038895,-460.0,0.00021917,4]
[365890675,1749975038904,-460.0,0.00021917,4]
[365890677,1749975038913,-460.0,0.00021917,4]
[365890680,1749975038923,-460.0,0.00021917,4]
[365890682,1749975038934,-460.0,0.00021917,4]
[365890683,1749975038943,-2193.18,0.00021917,4]
[365890685,1749975038953,-380.0,0.00021917,4]
[365890687,1749975038963,-460.0,0.00021917,4]
[365890689,1749975038972,-460.0,0.00021917,4]
[365890692,1749975038982,-317.05023977,0.00021917,4]
[365890693,1749975038992,-460.0,0.00021917,4]
[365890695,1749975039002,-460.0,0.00021917,4]
[365890697,1749975039012,-460.0,0.00021917,4]
[365890699,1749975039026,-460.0,0.00021917,4]
[365890701,1749975039036,-1554.15,0.00021917,4]
[365890703,1749975039046,-574.44,0.00021917,4]
[365890705,1749975039056,-2276.37,0.00021917,4]
[365890707,1749975039066,-367.5006184,0.00021917,4]
[365890709,1749975039076,-654.7,0.00021917,4]
[365890712,1749975039086,-1684.16,0.00021917,4]
[365890713,1749975039095,-171.53538269,0.00021917,4]
[365890715,1749975039105,-2101.8222121,0.00021917,2]
[365890717,1749975039115,-1688.0,0.00021921,2]
[365890720,1749975039125,-207.4,0.00021921,2]
[365890721,1749975039135,-151.0,0.00021944,4]
[365890724,1749975039145,-151.0,0.00021944,4]
[365890725,1749975039155,-861.83544489,0.00021951,2]
[365890728,1749975039165,-235.54694619,0.00021972,4]
[365890729,1749975039175,-500.0,0.00021973,2]
[365890732,1749975039185,-500.0,0.00021973,2]
[365890734,1749975039195,-503.0758213,0.00021973,2]
[365890735,1749975039204,-500.0,0.00021973,2]
[365890738,1749975039214,-500.0,0.00021973,2]
[365890740,1749975039223,-192.73412963,0.00021973,2]
[365890742,1749975039234,-511.35442707,0.00021973,2]
[365890743,1749975039243,-500.0,0.00021973,2]
[365890744,1749975039253,-500.0,0.00021973,2]
[365890745,1749975039263,-500.0,0.00021973,2]
[365890746,1749975039273,-502.57491485,0.00021973,2]
[365890747,1749975039282,-500.0,0.00021973,2]
[365890748,1749975039291,-500.0,0.00021973,2]
[365890749,1749975039301,-500.0,0.00021973,2]
[365890750,1749975039310,-500.0,0.00021974,2]
[365890751,1749975039319,-500.0,0.00021974,2]
[365890752,1749975039328,-500.0,0.00021974,2]
[365890753,1749975039339,-235.48078112,0.00021976,2]
[365890754,1749975039349,-500.71394032,0.00021976,2]
[365890756,1749975039359,-186.0,0.00022,2]
[365890759,1749975039379,-172.0,0.00022,2]
[365890761,1749975039390,-1780.51,0.00022,7]
[365890764,1749975039400,-2098.80716058,0.00022038,6]
[365890766,1749975039410,-845.25843836,0.00022044,2]
[365890767,1749975039420,-424.47602138,0.00022044,2]
[365890770,1749975039430,-160.0,0.00022044,2]
[365890772,1749975039440,-160.0,0.00022044,2]
[365890774,1749975039450,-835.55256958,0.00022044,2]
[365890775,1749975039460,-229.86375354,0.00022044,2]
[365890777,1749975039469,-2855.95146406,0.00022091,2]
[365890780,1749975039480,-1079.80028388,0.00022169,2]
[365890782,1749975039489,-2098.80716058,0.00022176,6]
[365890784,1749975039499,-460.0,0.00022191,4]
[365890786,1749975039508,-460.0,0.00022191,4]
[365890788,1749975039518,-464.31,0.00022191,4]
[365890790,1749975039528,-291.84010597,0.00022191,4]
[365890792,1749975039538,-335.92584016,0.00022191,4]
[365890794,1749975039547,-497.681607,0.00022191,4]
[365890796,1749975039558,-460.0,0.00022191,4]
[365890798,1749975039568,-579.98,0.00022191,4]
[365890800,1749975039578,-476.02,0.00022191,4]
[365890802,1749975039587,-200.0,0.00022191,4]
[365890804,1749975039597,-664.77,0.00022191,4]
[365890806,1749975039607,-521.23722991,0.00022191,4]
[365890808,1749975039617,-460.0,0.00022191,4]
[365890810,1749975039627,-460.0,0.00022191,4]
[365890812,1749975039636,-460.0,0.00022191,4]
[365890814,1749975039645,-526.58,0.00022191,4]
[365890816,1749975039655,-460.0,0.00022191,4]
[365890818,1749975039666,-460.0,0.00022191,4]
[365890820,1749975039676,-460.0,0.00022191,4]
[365890822,1749975039685,-460.0,0.00022191,4]
[365890824,1749975039695,-460.0,0.00022191,2]
[365890826,1749975039708,-370.0,0.00022191,4]
[365890828,1749975039719,-410.0,0.00022191,4]
[365890830,1749975039728,-460.0,0.00022191,4]
[365890833,1749975039739,-186.11544116,0.00022191,4]
[365890835,1749975039750,-410.0,0.00022191,4]
[365890837,1749975039759,-2426.14,0.00022191,4]
[365890839,1749975039769,-842.31,0.00022191,4]
[365890841,1749975039781,-460.0,0.00022191,4]
[365890842,1749975039791,-460.0,0.00022191,4]
[365890845,1749975039801,-430.0,0.00022191,4]
[365890847,1749975039811,-499.39,0.00022191,4]
[365890849,1749975039821,-340.0,0.00022191,4]
[365890851,1749975039831,-460.0,0.00022191,4]
[365890853,1749975039841,-460.0,0.00022191,4]
[365890855,1749975039850,-464.00730845,0.00022191,4]
[365890857,1749975039860,-3243.66,0.00022191,4]
[365890859,1749975039870,-460.0,0.00022191,4]
[365890861,1749975039880,-569.04,0.00022191,4]
[365890863,1749975039889,-2736.88,0.00022191,4]
[365890865,1749975039899,-522.56,0.00022191,4]
[365890867,1749975039908,-310.0,0.00022191,4]
[365890869,1749975039918,-841.3,0.00022191,4]
[365890871,1749975039927,-3703.19,0.00022191,4]
[365890873,1749975039937,-3048.92,0.00022191,4]
[365890875,1749975039947,-2924.58,0.00022191,4]
[365890877,1749975039957,-414.95503632,0.00022191,4]
[365890880,1749975039968,-564.7,0.00022191,4]
[365890882,1749975039977,-460.0,0.00022191,4]
[365890884,1749975039987,-460.0,0.00022191,4]
[365890886,1749975039999,-460.0,0.00022191,4]
[365890888,1749975040009,-460.0,0.00022191,4]
[365890891,1749975040024,-606.84,0.00022191,4]
[365890893,1749975040034,-460.0,0.00022191,4]
[365890895,1749975040043,-460.0,0.00022191,4]
[365890897,1749975040053,-1203.76,0.00022191,4]
[365890899,1749975040063,-1551.83,0.00022191,4]
[365890901,1749975040073,-460.0,0.00022191,4]
[365890903,1749975040083,-1455.59,0.00022191,4]
[365890905,1749975040093,-460.0,0.00022191,4]
[365890907,1749975040102,-400.0,0.00022191,4]
[365890909,1749975040112,-460.0,0.00022191,4]
[365890911,1749975040122,-566.41,0.00022191,4]
[365890913,1749975040131,-460.0,0.00022191,4]
[365890915,1749975040141,-460.28,0.00022191,4]
[365890917,1749975040151,-460.0,0.00022191,4]
[365890919,1749975040160,-460.0,0.00022191,4]
[365890921,1749975040170,-460.0,0.00022191,4]
[365890923,1749975040180,-829.02,0.00022191,4]
[365890925,1749975040190,-1462.87,0.00022191,4]
[365890927,1749975040199,-460.0,0.00022191,4]
[365890929,1749975040209,-460.0,0.00022191,4]
[365890931,1749975040219,-1687.78,0.00022191,4]
[365890933,1749975040229,-472.55,0.00022191,4]
[365890936,1749975040239,-460.0,0.00022191,4]
[365890938,1749975040248,-460.0,0.00022191,4]
[365890940,1749975040258,-460.0,0.00022191,4]
[365890942,1749975040268,-735.37,0.00022191,4]
[365890944,1749975040278,-460.0,0.00022191,4]
[365890946,1749975040287,-460.0,0.00022191,4]
[365890949,1749975040297,-460.0,0.00022191,4]
[365890952,1749975040306,-460.0,0.00022191,4]
[365890955,1749975040315,-1751.81,0.00022191,4]
[365890958,1749975040325,-460.0,0.00022191,4]
[365890961,1749975040334,-460.0,0.00022191,4]
[365890964,1749975040344,-460.0,0.00022191,4]
[365890966,1749975040353,-460.0,0.00022191,4]
[365890968,1749975040363,-460.0,0.00022191,4]
[365890970,1749975040372,-460.0,0.00022191,4]
[365890972,1749975040382,-2193.18,0.00022191,4]
[365890974,1749975040392,-460.0,0.00022191,4]
[365890976,1749975040401,-258.96903299,0.00022191,4]
[365890978,1749975040411,-460.0,0.00022191,4]
[365890980,1749975040420,-460.0,0.00022191,4]
[365890982,1749975040429,-1554.15,0.00022191,4]
[365890984,1749975040440,-574.44,0.00022191,4]
[365891003,1749975040450,-2276.37,0.00022191,4]
[365891005,1749975040623,-654.7,0.00022191,4]
[365891007,1749975040633,-1684.16,0.00022191,4]
[365891010,1749975040643,-590.75,0.000222,7]
[365891012,1749975040652,-3480.64135151,0.00022288,2]
[365891014,1749975040663,-2098.80716058,0.00022314,7]
[365891016,1749975040672,-420.0,0.00022331,2]
[365891018,1749975040682,-420.0,0.00022331,2]
[365891020,1749975040693,-500.0,0.00022356,2]
[365891022,1749975040709,-246.0,0.00022438,2]
[365891023,1749975040718,-188.7689299,0.00022448,2]
[365891026,1749975040728,-2098.80716058,0.00022452,7]
[365891027,1749975040739,-430.0,0.00022465,4]
[365891030,1749975040748,-579.98,0.00022465,4]
[365891032,1749975040758,-476.02,0.00022465,4]
[365891034,1749975040767,-664.77,0.00022465,4]
[365891036,1749975040779,-329.81140776,0.00022465,4]
[365891038,1749975040789,-526.58,0.00022465,4]
[365891040,1749975040799,-460.0,0.00022465,4]
[365891042,1749975040808,-460.0,0.00022465,2]
[365891044,1749975040817,-460.0,0.00022465,4]
[365891046,1749975040826,-2426.14,0.00022465,4]
[365891048,1749975040837,-842.31,0.00022465,4]
[365891050,1749975040846,-460.0,0.00022465,4]
[365891052,1749975040855,-499.39,0.00022465,4]
[365891054,1749975040865,-460.0,0.00022465,4]
[365891056,1749975040874,-460.0,0.00022465,4]
[365891058,1749975040884,-3243.66,0.00022465,4]
[365891060,1749975040895,-460.0,0.00022465,4]
[365891062,1749975040904,-569.04,0.00022465,4]
[365891064,1749975040913,-2736.88,0.00022465,4]
[365891066,1749975040923,-522.56,0.00022465,4]
[365891068,1749975040932,-841.3,0.00022465,4]
[365891070,1749975040941,-3703.19,0.00022465,4]
[365891072,1749975040951,-3048.92,0.00022465,4]
[365891075,1749975040961,-2924.58,0.00022465,4]
[365891077,1749975040971,-564.7,0.00022465,4]
[365891079,1749975040980,-460.0,0.00022465,4]
[365891081,1749975040990,-460.0,0.00022465,4]
[365891083,1749975040999,-460.0,0.00022465,4]
[365891086,1749975041028,-606.84,0.00022465,4]
[365891088,1749975041038,-186.97675364,0.00022465,4]
[365891090,1749975041047,-460.0,0.00022465,4]
[365891092,1749975041057,-1203.76,0.00022465,4]
[365891094,1749975041066,-1551.83,0.00022465,4]
[365891096,1749975041076,-175.28618288,0.00022465,4]
[365891098,1749975041085,-1455.59,0.00022465,4]
[365891100,1749975041094,-460.0,0.00022465,4]
[365891102,1749975041104,-460.0,0.00022465,4]
[365891104,1749975041114,-566.41,0.00022465,4]
[365891106,1749975041123,-460.0,0.00022465,4]
[365891108,1749975041133,-460.28,0.00022465,4]
[365891110,1749975041142,-460.0,0.00022465,4]
[365891112,1749975041151,-460.0,0.00022465,4]
[365891114,1749975041161,-460.0,0.00022465,4]
[365891116,1749975041171,-829.02,0.00022465,4]
[365891118,1749975041180,-1462.87,0.00022465,4]
[365891120,1749975041190,-460.0,0.00022465,4]
[365891122,1749975041199,-460.0,0.00022465,4]
[365891124,1749975041209,-1687.78,0.00022465,4]
[365891126,1749975041218,-472.55,0.00022465,4]
[365891128,1749975041228,-449.65525983,0.00022465,4]
[365891130,1749975041237,-460.0,0.00022465,4]
[365891132,1749975041247,-460.0,0.00022465,4]
[365891134,1749975041257,-735.37,0.00022465,4]
[365891136,1749975041266,-460.0,0.00022465,4]
[365891138,1749975041276,-518.86142643,0.00022465,4]
[365891140,1749975041285,-460.0,0.00022465,4]
[365891142,1749975041295,-460.0,0.00022465,4]
[365891144,1749975041305,-1751.81,0.00022465,4]
[365891146,1749975041314,-460.0,0.00022465,4]
[365891148,1749975041324,-460.0,0.00022465,4]
[365891150,1749975041334,-460.0,0.00022465,4]
[365891152,1749975041344,-460.0,0.00022465,4]
[365891155,1749975041362,-460.0,0.00022465,4]
[365891157,1749975041373,-2193.18,0.00022465,4]
[365891160,1749975041383,-460.0,0.00022465,4]
[365891162,1749975041394,-460.0,0.00022465,4]
[365891164,1749975041404,-460.0,0.00022465,4]
[365891166,1749975041414,-1554.15,0.00022465,4]
[365891168,1749975041424,-574.44,0.00022465,4]
[365891170,1749975041434,-2276.37,0.00022465,4]
[365891172,1749975041444,-654.7,0.00022465,4]
[365891174,1749975041454,-1684.16,0.00022465,4]
[365891176,1749975041464,-501.21816141,0.000225,2]
[365891178,1749975041474,-500.0,0.00022521,2]
[365891180,1749975041484,-505.94149795,0.00022521,2]
[365891182,1749975041493,-1000.0,0.00022521,2]
[365891184,1749975041503,-501.30969214,0.00022521,2]
[365891186,1749975041512,-1000.0,0.00022521,2]
[365891188,1749975041522,-506.31857721,0.00022521,2]
[365891190,1749975041532,-669.35438922,0.00022522,2]
[365891192,1749975041542,-2098.80716058,0.0002259,7]
[365891194,1749975041551,-168.0,0.00022615,2]
[365891197,1749975041561,-160.0,0.00022645,2]
[365891199,1749975041570,-213.32089821,0.00022645,2]
[365891201,1749975041580,-160.0,0.00022649,2]
[365891203,1749975041589,-2098.80716058,0.00022728,7]
[365891205,1749975041599,-579.98,0.00022739,4]
[365891206,1749975041609,-476.02,0.00022739,4]
[365891209,1749975041619,-664.77,0.00022739,4]
[365891211,1749975041629,-526.58,0.00022739,4]
[365891213,1749975041639,-151.0,0.00022739,7]
[365891215,1749975041648,-151.0,0.00022739,7]
[365891216,1749975041658,-460.0,0.00022739,2]
[365891219,1749975041668,-151.0,0.00022739,7]
[365891221,1749975041677,-151.0,0.00022739,7]
[365891223,1749975041688,-2426.14,0.00022739,4]
[365891225,1749975041700,-842.31,0.00022739,4]
[365891227,1749975041710,-460.0,0.00022739,4]
[365891229,1749975041720,-499.39,0.00022739,4]
[365891231,1749975041730,-151.0,0.00022739,7]
[365891233,1749975041740,-460.0,0.00022739,4]
[365891235,1749975041750,-460.0,0.00022739,4]
[365891237,1749975041759,-3243.66,0.00022739,4]
[365891239,1749975041769,-460.0,0.00022739,4]
[365891241,1749975041780,-569.04,0.00022739,4]
[365891243,1749975041790,-2736.88,0.00022739,4]
[365891245,1749975041800,-522.56,0.00022739,4]
[365891247,1749975041810,-841.3,0.00022739,4]
[365891249,1749975041819,-3703.19,0.00022739,4]
[365891251,1749975041829,-3048.92,0.00022739,4]
[365891253,1749975041838,-2924.58,0.00022739,4]
[365891255,1749975041848,-564.7,0.00022739,4]
[365891257,1749975041857,-460.0,0.00022739,4]
[365891259,1749975041867,-460.0,0.00022739,4]
[365891261,1749975041876,-606.84,0.00022739,4]
[365891263,1749975041886,-151.0,0.00022739,7]
[365891266,1749975041896,-460.0,0.00022739,4]
[365891268,1749975041906,-1203.76,0.00022739,4]
[365891270,1749975041915,-1551.83,0.00022739,4]
[365891272,1749975041925,-1455.59,0.00022739,4]
[365891274,1749975041934,-460.0,0.00022739,4]
[365891276,1749975041944,-151.0,0.00022739,7]
[365891278,1749975041953,-460.0,0.00022739,4]
[365891280,1749975041962,-566.41,0.00022739,4]
[365891282,1749975041971,-496.14588084,0.00022739,4]
[365891284,1749975041981,-460.28,0.00022739,4]
[365891286,1749975041990,-460.0,0.00022739,4]
[365891288,1749975042001,-270.0,0.00022739,4]
[365891291,1749975042019,-460.0,0.00022739,4]
[365891293,1749975042030,-829.02,0.00022739,4]
[365891295,1749975042040,-151.0,0.00022739,7]
[365891297,1749975042050,-1462.87,0.00022739,4]
[365891299,1749975042059,-151.0,0.00022739,7]
[365891301,1749975042068,-460.0,0.00022739,4]
[365891302,1749975042078,-460.0,0.00022739,4]
[365891305,1749975042087,-1687.78,0.00022739,4]
[365891306,1749975042096,-472.55,0.00022739,4]
[365891308,1749975042105,-460.0,0.00022739,4]
[365891311,1749975042115,-460.0,0.00022739,4]
[365891313,1749975042124,-735.37,0.00022739,4]
[365891315,1749975042134,-460.0,0.00022739,4]
[365891317,1749975042143,-460.0,0.00022739,4]
[365891319,1749975042152,-460.0,0.00022739,4]
[365891321,1749975042163,-1751.81,0.00022739,4]
[365891323,1749975042174,-460.0,0.00022739,4]
[365891325,1749975042183,-460.0,0.00022739,4]
[365891327,1749975042195,-460.0,0.00022739,4]
[365891329,1749975042204,-533.29082594,0.00022739,4]
[365891331,1749975042214,-460.0,0.00022739,4]
[365891333,1749975042224,-2193.18,0.00022739,4]
[365891335,1749975042234,-327.42361,0.00022739,7]
[365891337,1749975042243,-460.0,0.00022739,4]
[365891339,1749975042253,-327.42361,0.00022739,7]
[365891341,1749975042262,-460.0,0.00022739,4]
[365891343,1749975042272,-460.0,0.00022739,4]